bitfinex-derivatives/quotes_ETHF0:USTF0_20250329
["timestamp","ask_amount","ask_price","bid_price","bid_amount"]
[1743255314420,1.4062869,1857.2,1857.1,2.48446]
[1743255314818,2.4836869,1857.2,1857.1,2.48446]
[1743255315329,1.4062869,1857.2,1857.1,2.48446]
[1743255315820,2.4836869,1857.2,1857.1,2.48446]
[1743255316026,1.4062869,1857.2,1857.1,1.07746]
[1743255316225,2.4836869,1857.2,1857.1,2.51786]
[1743255316427,1.4062869,1857.2,1857.1,2.51786]
[1743255316719,2.4836869,1857.2,1857.1,2.51786]
[1743255317322,1.4062869,1857.2,1857.1,2.51786]
[1743255318124,1.4062869,1857.2,1857.1,1.07746]
[1743255318329,1.07752,1857.0,1856.9,0.0080869]
[1743255318629,4.6140869,1857.2,1857.0,1.07752]
[1743255318630,0.7259,1857.1,1857.0,1.07752]
[1743255318835,2.1032,1857.1,1857.0,1.07752]
[1743255319429,0.0080869,1857.2,1857.1,1.07746]
[1743255319620,1.3853869,1857.2,1857.1,1.07746]
[1743255319923,1.3853869,1857.2,1857.1,2.54986]
[1743255320524,0.0080869,1857.2,1857.1,2.54986]
[1743255321321,0.0080869,1857.2,1857.1,6.12386]
[1743255324224,0.0080869,1857.2,1857.1,15.69595629]
[1743255324526,3.2078,1857.5,1857.4,1.07729]
[1743255324736,3.2078,1857.5,1857.4,4.65029]
[1743255325124,1.3359,1857.6,1857.5,1.07723]
[1743255325324,1.3359,1857.6,1857.5,2.50523]
[1743255326032,0.0080869,1857.7,1857.6,1.07717]
[1743255326233,1.3439869,1857.7,1857.6,2.50517]
[1743255326626,0.0080869,1857.7,1857.6,2.50517]
[1743255327632,0.0080869,1857.7,1857.6,3.23147]
[1743255328535,1.0851969,1857.7,1857.6,3.23147]
[1743255328730,1.0851969,1857.7,1857.6,2.1543]
[1743255329026,1.0851969,1857.7,1857.4,3.573]
[1743255329027,1.07719,1857.6,1857.4,3.573]
[1743255329231,1.3841,1857.5,1857.4,6.12714]
[1743255329531,1.3841,1857.5,1857.4,4.65024]
[1743255330725,2.46133,1857.5,1857.4,3.573]
[1743255330929,1.0773,1857.4,1857.2,4.95796]
[1743255331231,1.4211,1857.3,1857.2,4.2852]
[1743255335525,1.4689,1857.5,1857.4,1.07729]
[1743255335728,0.7402,1857.6,1857.5,1.07723]
[1743255335934,2.2091,1857.6,1857.5,2.50623]
[1743255336137,0.0080869,1857.7,1857.6,1.07717]
[1743255337237,1.4769869,1857.7,1857.6,1.07717]
[1743255342834,1.4769869,1857.7,1857.6,2.54137]
[1743255343145,1.4769869,1857.7,1857.4,4.64924]
[1743255343338,1.07725,1857.5,1857.3,4.64931]
[1743255343643,2.0302,1857.4,1857.3,6.11351]
[1743255343946,2.0302,1857.4,1857.3,4.64931]
[1743255344937,0.689,1857.6,1857.5,1.07723]
[1743255345136,2.1619,1857.6,1857.5,1.07723]
[1743255346141,3.23909,1857.6,1857.4,1.07725]
[1743255346438,1.4729,1857.5,1857.4,1.07725]
[1743255347344,1.4729,1857.5,1857.3,4.64931]
[1743255347345,2.55015,1857.5,1857.3,4.64931]
[1743255347544,1.07732,1857.4,1857.2,5.70898]
[1743255347740,0.6736,1857.3,1857.2,4.97228]
[1743255347940,1.75094,1857.3,1857.2,3.2078]
[1743255348140,3.82074,1857.3,1857.2,4.2852]
[1743255348337,3.82074,1857.3,1857.2,3.2078]
[1743255349540,1.07752,1857.0,1856.9,49.7680869]
[1743255350046,1.07752,1857.0,1856.9,0.0080869]
[1743255350235,1.07752,1857.0,1856.9,1.0856669]
[1743255350435,1.07752,1857.0,1856.9,0.0080869]
[1743255351236,1.0775,1857.1,1856.9,1.0856669]
[1743255351440,1.3614,1857.0,1856.9,1.0856669]
[1743255351742,3.13142,1857.0,1856.9,1.0856669]
[1743255352142,2.0539,1857.0,1856.9,1.0856669]
[1743255354050,2.0539,1857.0,1856.9,1.7681669]
[1743255355056,1.07743,1857.2,1857.0,1.07749]
[1743255355352,2.49713,1857.2,1857.0,1.07749]
[1743255355939,1.4197,1857.1,1857.0,1.07749]
[1743255358450,2.49716,1857.1,1856.9,1.7681069]
[1743255358652,1.07752,1857.0,1856.9,0.6905869]
[1743255358854,1.3772,1857.0,1856.9,1.7681669]
[1743255360753,2.45472,1857.0,1856.9,0.0080869]
[1743255360958,1.07769,1856.7,1856.5,7.07579]
[1743255361252,1.07769,1856.7,1856.5,1.07779]
[1743255361459,1.4616,1856.6,1856.5,1.07779]
[1743255361663,1.4616,1856.6,1856.4,6.01555]
[1743255362145,2.53935,1856.6,1856.5,1.3499]
[1743255363457,1.4616,1856.6,1856.5,2.42771]
[1743255364153,1.0857869,1856.7,1856.6,1.07775]
[1743255364360,0.0080869,1856.7,1856.6,2.42185]
[1743255364660,1.4019869,1856.7,1856.6,2.42185]
[1743255365860,2.4796769,1856.7,1856.6,2.42185]
[1743255367557,0.0080869,1856.7,1856.6,2.42185]
[1743255367762,3.2078,1857.3,1856.6,5.99385]
[1743255368060,1.07742,1857.2,1857.0,1.07747]
[1743255368256,2.50372,1857.2,1857.1,1.4314]
[1743255369054,2.50372,1857.2,1857.1,2.50886]
[1743255369055,2.1072,1857.2,1857.1,2.50886]
[1743255369454,2.1072,1857.2,1857.1,1.4314]
[1743255369655,3.1846,1857.2,1857.1,2.50886]
[1743255370155,3.1846,1857.2,1857.1,1.4314]
[1743255371260,3.1846,1857.2,1857.1,2.50886]
[1743255371465,3.1846,1857.2,1857.1,1.4314]
[1743255371859,2.1072,1857.2,1857.1,2.50886]
[1743255372155,1.4263,1857.2,1857.1,2.50886]
[1743255373059,2.5037,1857.2,1857.1,1.4314]
[1743255373268,1.07758,1856.9,1856.8,1.07759]
[1743255373559,1.07771,1856.7,1856.4,3.571]
[1743255373767,1.07771,1856.7,1856.6,1.07775]
[1743255374063,2.52737,1856.8,1856.7,1.07769]
[1743255374258,1.4497,1856.8,1856.7,1.07769]
[1743255374464,2.52736,1856.8,1856.5,1.4542]
[1743255374972,2.52736,1856.8,1856.6,1.07775]
[1743255375158,2.42909,1856.7,1856.6,1.07775]
[1743255375658,2.42909,1856.7,1856.5,1.07776]
[1743255375863,1.3514,1856.6,1856.5,1.07776]
[1743255376063,2.42915,1856.6,1856.4,9.24713]
[1743255376562,1.3514,1856.6,1856.5,1.07781]
[1743255377366,2.42915,1856.6,1856.4,9.24711]
[1743255377768,1.3514,1856.5,1856.4,9.24711]
[1743255378561,1.3514,1856.5,1856.4,4.5983]
[1743255378861,1.3514,1856.5,1856.3,50.19849649]
[1743255378862,1.07787,1856.4,1856.3,0.0080869]
[1743255379061,2.49767,1856.4,1856.3,0.0080869]
[1743255379465,1.0781,1856.0,1855.9,3.571]
[1743255379865,1.07808,1856.1,1855.9,3.571]
[1743255380064,2.45838,1856.1,1855.9,3.571]
[1743255380466,1.3803,1856.0,1855.9,3.571]
[1743255380867,1.3803,1856.0,1855.9,4.64916]
[1743255381363,2.4584,1856.0,1855.8,1.7878669]
[1743255381566,1.07816,1855.9,1855.8,0.7096869]
[1743255381766,1.07816,1855.9,1855.8,0.0080869]
[1743255381767,2.44126,1855.9,1855.8,0.0080869]
[1743255381957,3.17356,1855.9,1855.8,0.0080869]
[1743255385870,3.89786,1855.9,1855.8,0.0080869]
[1743255396382,1.07833,1855.6,1855.5,3.2078]
[1743255396586,1.07833,1855.6,1855.5,4.6582]
[1743255396985,1.07845,1855.4,1855.3,1.81809]
[1743255397379,1.07845,1855.4,1855.3,0.7396]
[1743255397580,2.41385,1855.4,1855.3,2.19]
[1743255397880,2.41385,1855.4,1855.3,1.4504]
[1743255398390,2.41385,1855.4,1855.2,0.0080869]
[1743255398391,1.07851,1855.3,1855.2,0.0080869]
[1743255398693,2.41391,1855.3,1855.2,0.0080869]
[1743255400084,2.41391,1855.3,1855.2,1.4341869]
[1743255404490,2.41391,1855.3,1855.2,2.1698869]
[1743255406992,2.41391,1855.3,1855.2,1.4341869]
[1743255407184,4.5068,1855.3,1854.6,6.6932843]
[1743255407493,1.07874,1854.9,1854.8,1.4196]
[1743255408285,2.44514,1854.9,1854.8,2.4984]
[1743255408494,2.44514,1854.9,1854.8,1.4196]
[1743255409290,1.7546069,1855.0,1854.8,2.4984]
[1743255409595,3.1184869,1855.0,1854.8,2.49838]
[1743255409790,3.1184869,1855.0,1854.9,1.4403]
[1743255409791,2.4506869,1855.0,1854.9,1.4403]
[1743255410888,1.3719869,1855.0,1854.9,1.4403]
[1743255411090,1.3719869,1855.0,1854.9,2.51904]
[1743255411091,0.0080869,1855.0,1854.9,2.51904]
[1743255411399,1.0867669,1855.0,1854.9,1.4403]
[1743255412796,2.5014669,1855.0,1854.9,1.4403]
[1743255413901,3.1786669,1855.0,1854.9,1.4403]
[1743255420709,2.5014669,1855.0,1854.9,1.4403]
[1743255425606,2.5014669,1855.0,1853.9,1.4694]
[1743255425607,1.07925,1854.1,1853.9,1.4694]
[1743255425813,1.07915,1854.2,1854.1,1.4163]
[1743255426007,1.07915,1854.2,1854.1,2.8857]
[1743255426413,2.53805,1854.2,1854.1,2.8857]
[1743255427212,1.07938,1853.8,1853.7,3.2078]
[1743255427410,4.28718,1853.8,1853.6,1.85141777]
[1743255427614,4.28718,1853.8,1853.6,2.49577]
[1743255427910,1.07938,1853.8,1853.6,2.49577]
[1743255428216,1.07938,1853.8,1853.6,2.92473329]
[1743255428515,1.07944,1853.7,1853.6,1.4163]
[1743255428717,1.07939,1853.8,1853.6,2.49579]
[1743255428908,3.2078,1853.8,1853.6,1.4163]
[1743255429215,1.07944,1853.7,1853.6,1.4163]
[1743255429412,4.28722,1853.8,1853.6,2.49579]
[1743255429608,1.07944,1853.7,1853.6,1.4163]
[1743255429815,4.28722,1853.8,1853.6,2.49579]
[1743255430213,3.2078,1853.8,1853.6,1.4163]
[1743255430618,1.07944,1853.7,1853.6,1.4163]
[1743255430816,1.3645,1853.7,1853.6,1.4163]
[1743255431212,2.44394,1853.7,1853.6,1.4163]
[1743255431520,1.07955,1853.5,1853.4,3.2078]
[1743255431720,1.3645,1853.7,1853.4,3.9209]
[1743255431721,1.07954,1853.6,1853.4,3.9209]
[1743255431912,2.44404,1853.6,1853.5,1.3585]
[1743255432309,2.44404,1853.6,1853.4,3.9209]
[1743255432310,1.07955,1853.5,1853.4,3.9209]
[1743255432519,1.3645,1853.5,1853.4,5.2794]
[1743255432820,2.44405,1853.5,1853.4,3.2078]
[1743255433212,1.3645,1853.5,1853.4,4.28741]
[1743255433412,2.44405,1853.5,1853.4,4.6818]
[1743255433821,1.07948,1853.7,1853.5,1.07954]
[1743255434114,8.963,1853.8,1853.6,2.1871]
[1743255434321,5.76612,1853.8,1853.7,1.474]
[1743255434713,0.0080869,1853.9,1853.8,1.07938]
[1743255437716,1.0874069,1853.9,1853.8,1.07938]
[1743255437915,0.0080869,1853.9,1853.8,1.07938]
[1743255443327,0.0080869,1853.9,1853.7,2.55342]
[1743255443527,1.0874169,1853.9,1853.8,1.07938]
[1743255443834,1.0874169,1853.9,1853.8,2.44848]
[1743255444434,1.0874169,1853.9,1853.8,1.3691]
[1743255444733,1.0874169,1853.9,1853.8,2.44848]
[1743255445935,4.2952169,1853.9,1853.8,2.44848]
[1743255447939,0.0080869,1853.9,1853.8,1.3691]
[1743255448138,1.0874069,1853.9,1853.8,1.3691]
[1743255448634,1.0874069,1853.9,1853.8,2.44848]
[1743255448941,1.07944,1853.7,1853.6,5.0265]
[1743255449440,1.07944,1853.7,1853.6,6.10599]
[1743255449741,1.74882,1853.8,1853.6,6.10599]
[1743255450239,1.74882,1853.8,1853.7,1.3656]
[1743255450940,0.0080869,1853.9,1853.8,1.07938]
[1743255453538,1.0874069,1853.9,1853.7,1.3656]
[1743255453836,1.4102869,1853.9,1853.8,1.07938]
[1743255454031,1.07938,1853.8,1853.7,1.3656]
[1743255454236,1.82108,1853.8,1853.7,1.3656]
[1743255454437,3.21808,1853.8,1853.7,1.3656]
[1743255455338,1.07944,1853.7,1853.5,9.571]
[1743255455644,1.397,1853.7,1853.6,1.07949]
[1743255455845,1.397,1853.7,1853.6,2.49009]
[1743255456538,1.397,1853.7,1853.6,1.4106]
[1743255456740,1.397,1853.7,1853.6,2.49009]
[1743255459843,0.0080869,1853.9,1853.8,1.07938]
[1743255460142,0.0080869,1853.9,1853.8,4.28718]
[1743255460343,0.0080869,1853.9,1853.8,6.33458]
[1743255460548,0.0080869,1853.9,1853.8,9.90758]
[1743255461549,1.0874069,1853.9,1853.8,5.6204]
[1743255462352,0.0080869,1853.9,1853.8,2.0474]
[1743255462551,1.0874069,1853.9,1853.8,1.3584]
[1743255462753,1.7732069,1853.9,1853.8,2.43778]
[1743255462949,1.07938,1853.8,1853.6,0.7051]
[1743255463145,2.46213,1853.8,1853.6,2.43788]
[1743255463344,3.17033,1853.8,1853.6,2.43788]
[1743255463549,1.07949,1853.6,1853.5,1.07952]
[1743255463748,1.07949,1853.6,1853.5,2.49812]
[1743255463943,1.76529,1853.6,1853.5,1.4186]
[1743255465753,1.76529,1853.6,1853.1,9.2058]
[1743255465754,1.07969,1853.3,1853.1,9.2058]
[1743255465954,1.07969,1853.3,1853.2,1.4186]
[1743255466950,0.6858,1853.6,1853.2,1.4186]
[1743255467156,1.3987,1853.5,1853.3,3.572]
[1743255467453,2.4783,1853.5,1853.4,1.4178]
[1743255468658,2.4783,1853.5,1853.4,2.1517]
[1743255469852,2.4783,1853.5,1853.4,1.4178]
[1743255470447,1.07955,1853.5,1853.4,1.4178]
[1743255470854,2.42405,1853.5,1853.4,1.4178]
[1743255472759,1.3445,1853.5,1853.4,1.4178]
[1743255473056,2.42405,1853.5,1853.4,1.4178]
[1743255474657,1.3445,1853.5,1853.2,0.7339]
[1743255474961,1.07967,1853.3,1853.2,2.1146]
[1743255475361,2.50437,1853.3,1853.2,2.1146]
[1743255475756,1.4247,1853.3,1853.2,2.1146]
[1743255475963,2.50437,1853.3,1853.2,2.1146]
[1743255476458,3.18627,1853.3,1853.2,2.1146]
[1743255477458,2.50437,1853.3,1853.2,2.1146]
[1743255479562,1.4247,1853.3,1853.2,2.1146]
[1743255479752,2.50437,1853.3,1853.2,2.1146]
[1743255480155,2.50437,1853.3,1853.2,1.3807]
[1743255480356,1.4247,1853.3,1853.2,1.3807]
[1743255480551,2.50437,1853.3,1853.2,2.0704]
[1743255480760,1.4247,1853.3,1853.2,3.15013]
[1743255480964,2.50437,1853.3,1853.2,2.0704]
[1743255481666,1.07982,1853.1,1852.9,1.07989]
[1743255481958,2.1493,1853.2,1852.9,2.52085305]
[1743255482162,2.56062,1853.1,1853.0,0.6897]
[1743255482565,1.4808,1853.1,1853.0,0.6897]
[1743255482759,3.2078,1853.3,1853.0,0.6897]
[1743255482964,1.07979,1853.1,1853.0,0.6897]
[1743255483362,1.4808,1853.2,1853.0,1.76953]
[1743255483567,1.0797,1853.3,1853.0,3.8975]
[1743255483773,2.5605,1853.3,1853.1,1.07976]
[1743255484065,2.54395305,1853.3,1853.1,1.07976]
[1743255484466,1.4808,1853.3,1853.2,1.07973]
[1743255484658,1.80232,1853.6,1853.4,1.07958]
[1743255484854,2.41952,1853.6,1853.5,0.6827]
[1743255485566,1.07959,1853.5,1853.3,2.46425]
[1743255485767,2.41959,1853.5,1853.4,2.0673]
[1743255486762,1.34,1853.5,1853.4,2.0673]
[1743255486960,1.34,1853.5,1853.4,3.14691]
[1743255487164,2.41955,1853.5,1853.4,2.0673]
[1743255487663,1.34,1853.5,1853.4,3.14691]
[1743255487965,4.28727,1853.7,1853.5,1.07954]
[1743255488165,5.63887,1853.7,1853.6,1.4203]
[1743255489366,1.07955,1853.5,1853.4,0.6827]
[1743255490569,1.07955,1853.5,1853.4,2.103]
[1743255492171,1.3516,1853.6,1853.4,2.103]
[1743255492374,2.43109,1853.6,1853.5,1.4114]
[1743255494368,1.3516,1853.6,1853.5,2.49095]
[1743255494568,1.3516,1853.6,1853.5,1.4114]
[1743255494774,0.7371,1853.8,1853.5,1.4114]
[1743255494974,2.4775469,1853.9,1853.7,1.07944]
[1743255495176,5.6853469,1853.9,1853.8,1.3476]
[1743255495477,4.2952469,1853.9,1853.8,1.3476]
[1743255496679,1.0874469,1853.9,1853.8,1.3476]
[1743255496974,1.0874469,1853.9,1853.8,3.15658]
[1743255496975,0.0080869,1853.9,1853.8,3.15658]
[1743255497674,1.0874069,1853.9,1853.8,2.0772]
[1743255498077,0.0080869,1853.9,1853.8,3.15658]
[1743255498887,0.0080869,1853.9,1853.8,3.84598]
[1743255499072,1.0874069,1853.9,1853.8,1.3476]
[1743255501176,4.2952069,1853.9,1853.8,1.3476]
[1743255501773,3.2158869,1853.9,1853.6,3.2078]
[1743255501978,1.07944,1853.7,1853.6,4.6889]
[1743255503575,4.2952469,1853.9,1853.7,1.07944]
[1743255503881,1.0874469,1853.9,1853.7,2.55504]
[1743255504276,1.0874469,1853.9,1853.8,2.1918]
[1743255504472,0.0080869,1853.9,1853.8,3.27118]
[1743255505081,0.0080869,1853.9,1853.8,2.1918]
[1743255505484,1.0874069,1853.9,1853.8,2.1918]
[1743255505685,0.0080869,1853.9,1853.8,2.1918]
[1743255505887,0.0080869,1853.9,1853.8,3.27118]
[1743255508097,0.0080869,1853.9,1853.8,6.84218]
[1743255513789,0.0080869,1853.9,1853.8,10.04998]
[1743255520501,3.2078,1854.6,1853.8,17.4686]
[1743255520796,2.42548,1854.9,1854.6,1.07891]
[1743255520994,4.6058,1855.0,1854.5,4.9438]
[1743255520995,1.07886,1854.7,1854.5,4.9438]
[1743255521191,2.7447,1854.6,1854.5,4.9438]
[1743255521392,2.7447,1854.6,1854.5,6.02277]
[1743255521699,2.7447,1854.6,1854.5,2.45277]
[1743255524995,0.0080869,1854.7,1854.6,1.07891]
[1743255525203,0.0080869,1854.7,1854.6,6.42871]
[1743255528596,0.0080869,1854.7,1854.6,9.99771]
[1743255529796,1.4603869,1854.7,1854.6,9.99771]
[1743255530389,1.4603869,1854.7,1854.6,6.78991]
[1743255531202,1.4603869,1854.7,1854.6,7.46551]
[1743255534000,0.668,1855.0,1854.9,1.07874]
[1743255534196,2.8674,1855.0,1854.9,1.07874]
[1743255543608,3.94608,1855.0,1854.9,1.07874]
[1743255546112,2.8674,1855.0,1854.7,3.2078]
[1743255546304,1.07885,1854.8,1854.6,1.3707]
[1743255546504,2.7997,1854.7,1854.6,2.44961]
[1743255547602,4.2945569,1855.1,1854.9,1.07872]
[1743255547804,2.8274,1855.0,1854.9,1.07872]
[1743255548207,1.07874,1854.9,1854.8,1.3707]
[1743255548413,1.07891,1854.6,1854.5,3.2078]
[1743255548610,1.07897,1854.5,1854.4,0.0080869]
[1743255548814,4.00157,1854.5,1854.4,0.0080869]
[1743255559426,1.07915,1854.2,1854.1,3.2078]
[1743255560318,1.07915,1854.2,1854.1,4.287]
[1743255560628,1.07911,1854.3,1854.1,5.76417]
[1743255560819,1.07909,1854.3,1854.2,1.4772]
[1743255562024,1.07915,1854.2,1854.1,3.2078]
[1743255562321,2.47845,1854.2,1854.1,3.2078]
[1743255562920,2.47845,1854.2,1854.1,4.6805]
[1743255563121,2.47845,1854.2,1854.1,1.4727]
[1743255565325,1.0792,1854.1,1854.0,0.0080869]
[1743255565529,2.5259,1854.1,1854.0,1.4136869]
[1743255565820,1.4467,1854.1,1854.0,2.4929469]
[1743255566020,1.4467,1854.2,1854.1,1.0792]
[1743255566327,1.07914,1854.3,1854.1,1.4056]
[1743255566529,2.52584,1854.3,1854.1,2.48478]
[1743255566729,2.52584,1854.3,1854.2,0.7156]
[1743255566927,2.52584,1854.3,1854.2,2.1212]
[1743255570421,2.52584,1854.3,1854.2,3.20035]
[1743255570619,2.52584,1854.3,1854.2,2.1212]
[1743255574634,2.52584,1854.3,1854.2,1.4056]
[1743255576036,1.0792,1854.1,1854.0,1.4204869]
[1743255576335,1.0792,1854.1,1854.0,2.8590869]
[1743255576738,2.4183,1854.1,1854.0,2.8590869]
[1743255577336,2.4183,1854.1,1854.0,3.9383469]
[1743255577935,2.4183,1854.1,1854.0,2.8590869]
[1743255578338,1.3391,1854.1,1854.0,3.9383469]
[1743255578544,2.49287,1854.2,1854.1,1.0792]
[1743255578545,1.07917,1854.2,1854.1,1.0792]
[1743255578839,1.07906,1854.4,1854.1,4.6464]
[1743255579040,1.07906,1854.4,1854.3,1.07909]
[1743255579244,1.07901,1854.5,1854.3,1.07909]
[1743255579544,4.28676,1854.6,1854.4,3.16713]
[1743255579738,4.28671,1854.6,1854.5,2.1076]
[1743255581142,1.07897,1854.5,1854.4,0.7197]
[1743255581343,3.89857,1854.5,1854.4,0.7197]
[1743255581542,3.16817,1854.5,1854.4,0.7197]
[1743255581843,3.16817,1854.5,1854.4,2.0881]
[1743255583251,3.16817,1854.5,1854.4,1.3684]
[1743255583452,1.07909,1854.3,1854.2,0.7011]
[1743255583650,1.07909,1854.3,1854.2,2.1435]
[1743255584038,2.50959,1854.3,1854.2,2.1435]
[1743255584544,2.50959,1854.3,1854.2,1.4424]
[1743255586648,3.9336,1854.4,1854.3,1.07909]
[1743255586649,3.2078,1854.4,1854.3,1.07909]
[1743255586948,0.6878,1854.5,1854.3,1.07909]
[1743255587254,4.97457,1854.5,1854.4,1.4392]
[1743255587458,1.07897,1854.5,1854.4,3.22113]
[1743255587654,2.54116,1854.6,1854.4,3.22113]
[1743255587854,2.54116,1854.6,1854.5,1.4392]
[1743255589951,1.4622,1854.6,1854.5,2.51817]
[1743255590156,2.54111,1854.6,1854.5,1.4392]
[1743255591561,3.25231,1854.6,1854.5,1.4392]
[1743255594656,2.54111,1854.6,1854.5,1.4392]
[1743255597959,1.07903,1854.4,1854.3,0.6768]
[1743255598157,1.07903,1854.4,1854.3,3.22589]
[1743255598658,2.42193,1854.4,1854.3,3.22589]
[1743255599854,2.42193,1854.4,1854.3,2.1468]
[1743255600059,1.07915,1854.2,1854.1,1.77089]
[1743255600269,1.07915,1854.2,1854.1,2.44099]
[1743255600564,2.42202,1854.3,1854.2,1.07915]
[1743255600868,1.07915,1854.2,1854.1,2.44097]
[1743255601568,1.07915,1854.2,1854.1,3.82617]
[1743255602167,1.07912,1854.3,1854.1,3.82617]
[1743255602465,1.07912,1854.3,1854.2,1.3852]
[1743255602863,1.4204,1854.4,1854.2,2.46435]
[1743255602864,2.49947,1854.4,1854.2,2.46435]
[1743255603062,1.07907,1854.4,1854.2,1.3852]
[1743255603263,2.49947,1854.4,1854.3,1.3852]
[1743255604669,1.4204,1854.4,1854.3,2.46429]
[1743255605065,2.49943,1854.4,1854.3,2.46429]
[1743255605966,2.49943,1854.4,1854.3,1.3852]
[1743255606570,2.49943,1854.4,1854.3,2.46429]
[1743255606771,3.2078,1854.7,1854.5,1.07895]
[1743255606971,5.73135,1854.7,1854.6,1.4268]
[1743255607273,4.28665,1854.7,1854.6,1.4268]
[1743255607569,4.28657,1854.9,1854.7,1.07885]
[1743255607769,4.28657,1854.9,1854.8,1.4268]
[1743255607973,1.07877,1854.9,1854.8,1.4268]
[1743255609673,3.2158869,1855.1,1854.9,1.07874]
[1743255609975,4.2945369,1855.1,1854.9,1.07874]
[1743255610175,1.07868,1855.0,1854.8,1.07876]
[1743255611076,4.2945469,1855.1,1854.7,5.0032]
[1743255611269,4.2945469,1855.1,1854.9,1.07872]
[1743255611674,3.2158869,1855.1,1855.0,1.78738]
[1743255611976,4.2945069,1855.1,1855.0,0.7087]
[1743255612172,1.0867069,1855.1,1855.0,0.7087]
[1743255612576,1.0867069,1855.1,1855.0,1.4086]
[1743255615278,0.0080869,1855.1,1854.8,1.07877]
[1743255615470,2.50822,1855.0,1854.8,1.81937]
[1743255616367,1.4295,1855.0,1854.8,0.7406]
[1743255616572,2.50822,1855.0,1854.8,1.81939]
[1743255617069,1.4295,1855.0,1854.8,0.7406]
[1743255617276,1.4295,1855.0,1854.8,1.81935]
[1743255617876,2.50819,1855.0,1854.8,1.81935]
[1743255621284,1.4295,1855.0,1854.8,1.81935]
[1743255621480,2.5082,1855.0,1854.8,1.81935]
[1743255622274,2.5082,1855.0,1854.9,1.4075]
[1743255623283,1.8125,1855.0,1854.9,1.4075]
[1743255623483,3.1828,1855.0,1854.9,2.1176]
[1743255624486,3.1828,1855.0,1854.9,3.19634]
[1743255624683,2.1041,1855.0,1854.9,3.19634]
[1743255624885,0.0080869,1855.1,1855.0,1.07868]
[1743255625079,0.7217,1855.5,1855.2,1.07851]
[1743255625381,2.48025,1855.4,1855.3,1.3809]
[1743255625684,3.21855,1855.4,1855.3,1.3809]
[1743255627287,2.1401,1855.4,1855.3,2.45941]
[1743255628491,3.21855,1855.4,1855.3,1.3809]
[1743255629284,3.21855,1855.4,1855.3,2.45941]
[1743255629789,2.1401,1855.4,1855.3,2.45941]
[1743255630688,1.4018,1855.4,1855.3,2.45941]
[1743255632088,0.0080869,1855.5,1855.3,1.3809]
[1743255632298,0.0080869,1855.5,1855.4,3.16435]
[1743255636895,4.28588,1856.1,1855.8,1.07819]
[1743255637089,3.8465,1856.0,1855.9,1.4293]
[1743255637286,2.7684,1856.0,1855.9,2.50746]
[1743255637682,3.8465,1856.0,1855.9,1.4293]
[1743255638094,2.7684,1856.0,1855.9,1.4293]
[1743255639000,1.3702,1856.0,1855.9,2.50746]
[1743255639400,1.3702,1856.0,1855.9,1.4293]
[1743255639594,1.3702,1856.0,1855.9,2.50746]
[1743255640391,0.0080869,1856.1,1856.0,1.0781]
[1743255640695,0.6933,1856.4,1856.2,1.07796]
[1743255640995,2.0607,1856.4,1856.3,2.0796]
[1743255641392,2.0607,1856.4,1856.3,3.15752]
[1743255641786,2.0607,1856.4,1856.3,2.0796]
[1743255641998,3.13857,1856.4,1856.3,2.0796]
[1743255642393,2.0607,1856.4,1856.3,2.0796]
[1743255643194,2.0607,1856.4,1856.3,3.15752]
[1743255643592,1.3674,1856.4,1856.3,3.15752]
[1743255643800,1.3674,1856.4,1856.3,3.83372]
[1743255644094,0.0080869,1856.5,1856.4,1.07787]
[1743255644292,1.3892869,1856.5,1856.4,2.53437]
[1743255646204,2.4670969,1856.5,1856.4,1.4565]
[1743255646401,1.07787,1856.4,1856.3,1.3767]
[1743255646602,1.07792,1856.3,1856.2,0.0080869]
[1743255646906,2.52202,1856.3,1856.2,0.0080869]
[1743255647603,1.4441,1856.3,1856.2,1.0860669]
[1743255647805,1.4441,1856.3,1856.2,2.5187669]
[1743255648100,2.8121,1856.3,1856.2,2.5187669]
[1743255648502,2.8121,1856.3,1856.2,1.4407869]
[1743255648804,2.8121,1856.3,1856.2,2.5187669]
[1743255649703,3.89002,1856.3,1856.2,1.4407869]
[1743255650605,2.8121,1856.3,1856.2,2.1252869]
[1743255650805,3.89002,1856.3,1856.2,2.1252869]
[1743255651106,2.8121,1856.3,1856.2,3.2032669]
[1743255652010,2.093,1856.3,1856.2,3.2032669]
[1743255653108,1.7605269,1856.5,1856.3,1.07787]
[1743255653401,2.0470869,1856.5,1856.4,1.07787]
[1743255653605,2.0470869,1856.5,1856.3,2.1078]
[1743255653803,2.0470869,1856.5,1856.4,1.07787]
[1743255654007,0.0080869,1856.5,1856.4,2.45257]
[1743255658106,0.0080869,1856.5,1856.4,1.3747]
[1743255658314,1.8202169,1856.5,1856.3,4.28569]
[1743255658610,1.402,1856.4,1856.3,5.69419]
[1743255659307,0.0080869,1856.5,1856.4,1.07787]
[1743255659513,0.0080869,1856.5,1856.4,2.48637]
[1743255660602,1.0858969,1856.5,1856.4,1.07787]
[1743255660800,2.4878969,1856.5,1856.3,5.69418]
[1743255661002,2.4878969,1856.5,1856.3,4.6163]
[1743255661206,1.402,1856.4,1856.3,5.69422]
[1743255661408,2.1032,1856.4,1856.3,5.69422]
[1743255662613,1.402,1856.4,1856.3,5.69422]
[1743255667619,2.47987,1856.4,1856.3,4.6163]
[1743255668210,2.47987,1856.4,1856.3,4.28572]
[1743255668416,2.47987,1856.4,1856.3,5.72042]
[1743255668623,1.402,1856.4,1856.3,5.72042]
[1743255668806,1.402,1856.4,1856.2,0.0080869]
[1743255669012,5.01392,1856.3,1856.2,0.0080869]
[1743255669213,1.80612,1856.3,1856.2,0.0080869]
[1743255669424,1.80612,1856.3,1856.2,1.0860669]